Cogmind - Beta 15 @@@ ROGUE MODE // 2025.06.29 @ 11:47:25 Player: StaticNoob Result: Destroyed by 89-YLT(R) with Subdweller Laser Performance ------------- Evolutions (0) 0 Regions Visited (2) 400 Robots Destroyed (25) 125 Value Destroyed (695) 695 Prototype IDs (4) 80 Alien Tech Used (0) 0 Bonus (0) 0 TOTAL SCORE: 1300 Bonus ------- None Cogmind --------- Core Integrity 0/250 Matter 61/300 Energy 100/100 System Corruption 0% Temperature Cool (6) Movement Rolling (155) Ox5 Location -10/Subcaves Parts ------- > --- POWER (1) -------- Subdweller Power Source > --- PROPULSION (2) --- Light Treads Wheel > --- UTILITY (2) ------ High-capacity Storage Unit Light Armor Plating > --- WEAPON (2) ------- Improved Light Cannon Improved Light Cannon > --- INVENTORY (20) --- Ion Engine Light Treads Small Storage Unit Medium Battery (150) Medium Matter Pod (0) Sensor Array Terrain Scan Processor Seismic Detector Scrap Shield Light Assault Rifle Subdweller Machine Gun Hammer Scrap Shield Fragment (48) Scrap Shield Fragment (46) Scrap Shield Fragment (45) Peak State ------------ > --- POWER ------------ Subdweller Power Source > --- PROPULSION ------- Light Treads Subdweller Monowheel > --- UTILITY ---------- High-capacity Storage Unit Signal Interpreter > --- WEAPON ----------- Light Assault Rifle Improved Light Cannon > --- INVENTORY -------- Ion Engine Light Treads Wheel Small Storage Unit Medium Battery Medium Matter Pod Sensor Array Terrain Scan Processor Seismic Detector Light Armor Plating Improved Light Cannon Improved Light Cannon Hammer Scrap Shield Fragment Scrap Shield Fragment [Rating: 12] Favorites ----------- Power Light Ion Engine Engine Light Ion Engine Propulsion Light Treads Treads Light Treads Wheel Compact Wheel Utility High-capacity Storage Unit Device Seismic Detector Storage High-capacity Storage Unit Processor Signal Interpreter Protection Light Armor Plating Weapon Improved Light Cannon Energy Gun Small Laser Ballistic Gun Assault Rifle Ballistic Cannon Improved Light Cannon Impact Weapon Hammer Build | -11 -10 -10 ------- Run | Yrd Mat Sub Slots Evolved . | . . . Power . | . . . Propulsion . | . . . Utility . | . . . Weapon . | . . . Parts Attached 25 | 7 10 8 Power 3 | 1 1 1 Engine 3 | 1 1 1 Core . | . . . Reactor . | . . . Propulsion 8 | 2 3 3 Treads 4 | 1 2 1 Leg . | . . . Wheel 4 | 1 1 2 Hover . | . . . Flight . | . . . Utility 5 | 1 3 1 Device 1 | . 1 . Storage 2 | 1 1 . Processor 1 | . 1 . Hackware . | . . . Protection 1 | . . 1 Artifact . | . . . Weapon 9 | 3 3 3 Energy Gun 1 | 1 . . Energy Cannon . | . . . Ballistic Gun 2 | 2 . . Ballistic Cannon 5 | . 3 2 Launcher . | . . . Special Weapon . | . . . Impact Weapon 1 | . . 1 Slashing Weapon . | . . . Piercing Weapon . | . . . Special Melee Weapon . | . . . Unidentified Prototypes . | . . . Parts Lost 6 | . 1 5 Power . | . . . Propulsion 3 | . 1 2 Utility . | . . . Weapon 3 | . . 3 Highest Loss Streak 2 | . 1 2 To Critical Strikes . | . . . Average Backups 11 | 2 9 13 Power . | . . 1 Propulsion 2 | 1 2 2 Utility 5 | . 4 7 Weapon 2 | . 2 3 Tool/Special . | . . . Unused Backups 7 | . . 7 Power 1 | . . 1 Propulsion . | . . . Utility 5 | . . 5 Weapon 1 | . . 1 Tool/Special . | . . . Average Slot Usage (%) 98 | . 97 99 Engine 14 | . 14 14 Treads 13 | . 13 14 Wheel 13 | . 14 13 Storage 14 | . 14 14 Processor 10 | . 11 9 Protection 2 | . . 4 Ballistic Gun 7 | . 7 6 Ballistic Cannon 19 | . 19 20 Peak Build Rating 12 | 6 10 12 Average Rating 9 | 4 8 11 On Entrance 5 | . 6 10 Naked Turns . | . . . Heaviest Build 56 | 11 51 56 Greatest Support 20 | 16 20 20 Greatest Overweight (x) 5 | . 3 5 Average Overweight (x) 2 | . 1 3 Largest Inventory Capacity 20 | 8 20 20 Average Capacity 17 | 7 16 20 Most Carried 19 | 3 16 19 Average Carried 12 | 2 9 16 Final Capacity 20 | 8 20 20 Final Carried 16 | 3 16 16 Class Distribution -------------------- 100% | Mutant Dominant Class ---------------- Mutant | -10/Materials Mutant | -10/Subcaves Resources | -11 -10 -10 ----------- Run | Yrd Mat Sub Matter Collected 822 | 145 556 121 Remotely . | . . . Salvage Created 646 | . 494 152 Parts 39 | . 26 13 Haulers Intercepted 1 | . 1 . Recyclers Shooed 1 | . 1 . Parts Field Recycled . | . . . Retrieved Matter . | . . . Parts Self-Destructed 2 | . . 2 Prevented . | . . . Kills | -11 -10 -10 ------- Run | Yrd Mat Sub Combat Hostiles Destroyed 19 | . 11 8 Guns 6 | . 2 4 Cannons 13 | . 9 4 Classes Destroyed 7 | . 5 2 Worker 2 | . 2 . Hauler 1 | . 1 . Recycler 1 | . 1 . Watcher 2 | . 2 . Swarmer 3 | . . 3 Grunt 11 | . 11 . Subdweller 5 | . . 5 Best Kill Streak 3 | . 3 3 Combat Bots Only 3 | . 3 3 Max Kills in Single Turn 1 | . 1 1 Gunslinging . | . . . Exploded . | . . . Melee . | . . . Uniques/NPCs Destroyed . | . . . Combat | -11 -10 -10 -------- Run | Yrd Mat Sub Hostile Shots Fired 157 | . 79 78 Missed 50 | . 26 24 Hits 107 | . 53 54 Projectile 107 | . 53 54 Critical Strikes 2 | . 1 1 Damage Taken 1410 | . 720 690 Core 251 | . 138 113 Absorbed by Shields . | . . . Regen/Repaired (Parts) 22 | . 22 . Core Remaining (%) 100 | 100 . . Volleys Fired 95 | . 57 38 Largest 2 | . 2 2 Hottest 66 | . 66 66 Shots Fired 188 | . 112 76 Gun 60 | . 36 24 Cannon 128 | . 76 52 Launcher . | . . . Special . | . . . Kinetic 177 | . 101 76 Thermal 11 | . 11 . Explosive . | . . . Electromagnetic . | . . . Robot Hit Streak 13 | . 6 13 Robot Miss Streak 8 | . 8 4 Penetration Max . | . . . Secondary Targets 1 | . 1 . Max Gunslinging Chain 1 | . 1 . Shots Hit Robots 96 | . 55 41 Core Hits 39 | . 24 15 Critical Kills . | . . . Critical Parts Destroyed . | . . . Critical Strikes 2 | . 2 . Blast 2 | . 2 . Melee Attacks 7 | . . 7 Impact 7 | . . 7 Slashing . | . . . Piercing . | . . . Sneak Attacks . | . . . Combat Hostiles . | . . . Follow-up Attacks . | . . . Damage Inflicted 1613 | . 974 639 Guns 385 | . 255 130 Cannons 1213 | . 704 509 Explosions . | . . . Melee . | . . . Ramming 15 | . 15 . Kinetic 1521 | . 882 639 Thermal 77 | . 77 . Explosive . | . . . Electromagnetic . | . . . Impact . | . . . Slashing . | . . . Piercing . | . . . Highest Corruption . | . . . Average Corruption . | . . . Corruption Purged . | . . . Corruption Blocked . | . . . Overload Shots . | . . . Overflow Damage . | . . . Projectiles . | . . . Explosions . | . . . Melee . | . . . Knockbacks 11 | . 4 7 Impact . | . . . Kinetic 11 | . 4 7 Secondary . | . . . Self-Inflicted Damage 7 | . 7 . Shots . | . . . Rammed 2 | . 2 . Targets Rammed 2 | . 2 . Kicked . | . . . Crushed . | . . . Highest Temperature 79 | . 79 . Average Temperature 25 | . 25 . Received Heat Transfer 471 | . 387 84 Siege Activations . | . . . Martial Activations . | . . . Shielding Activations . | . . . Robots Disrupted . | . . . Combat Hostiles . | . . . Robots Corrupted . | . . . Combat Hostiles . | . . . Parts Fried . | . . . Impact Corruptions . | . . . Robots Melted . | . . . Combat Hostiles . | . . . Parts Melted . | . . . Heat Transferred 175 | . 175 . Parts Sabotaged . | . . . Parts Stolen . | . . . Parts Stripped . | . . . Power Chain Reactions . | . . . Alert | -11 -10 -10 ------- Run | Yrd Mat Sub Maximum Alert Level . | . . . Low Security (%) 100 | 100 100 . Level 1 . | . . . Level 2 . | . . . Level 3 . | . . . Level 4 . | . . . Level 5 . | . . . High Security . | . . . Max Security . | . . . Peak Influence 153 | . 153 . Initial . | . . . Average 41 | . 42 . Influence Increases 460 | . 390 70 Destroy 0b10 Robot/C 280 | . 220 60 Destroy 0b10 Robot/NC 30 | . 30 . Destroy Leader 66 | . 56 10 Successful Hack 37 | . 37 . Select Force Hacks 30 | . 30 . Disable Machine 15 | . 15 . Destroy Structure 2 | . 2 . Influence Decreases 460 | . 289 171 Entered New Map 49 | . . 49 Time Decay 389 | . 279 110 Lost Part 22 | . 10 12 Squads Dispatched 2 | . 2 . Investigation 1 | . 1 . Extermination . | . . . Reinforcement 1 | . 1 . Assault . | . . . Garrison . | . . . Intercept . | . . . Searches Triggered . | . . . Construction Impeded . | . . . Haulers Reinforced . | . . . Active Scanning Responses . | . . . Cargo Convoy Interrupts . | . . . Stealth | -11 -10 -10 --------- Run | Yrd Mat Sub Distress Signals 1 | . 1 . Communications Jammed . | . . . Distress Signals . | . . . Times Spotted 29 | . 19 10 Peak Tracking Total 3 | . 3 3 Tactical Retreats . | . . . Traps | -11 -10 -10 ------- Run | Yrd Mat Sub Traps Triggered 1 | . 1 . Indirectly . | . . . Trap Hack Attempts . | . . . Triggered . | . . . Disarmed . | . . . Reprogrammed . | . . . Reused . | . . . Traps Extracted . | . . . Installed . | . . . Triggered . | . . . Machines | -11 -10 -10 ---------- Run | Yrd Mat Sub Machines Disabled 1 | . 1 . Max in Single Turn 1 | . 1 . Machines Repaired . | . . . Machines Dismantled . | . . . Machines Sabotaged . | . . . Overloaded Fab Kills . | . . . Hacking | -11 -10 -10 --------- Run | Yrd Mat Sub Machines Accessed 7 | . 7 . Terminals 5 | . 5 . Fabricators . | . . . Repair Stations 1 | . 1 . Recycling Units 1 | . 1 . Scanalyzers . | . . . Garrison Access . | . . . Total Hacks 20 | . 20 . Successful 12 | . 12 . Failed 8 | . 8 . Catastrophic 1 | . 1 . Database Lockouts . | . . . Manual 13 | . 13 . Terminals 16 | . 16 . Fabricators . | . . . Repair Stations 2 | . 2 . Recycling Units 2 | . 2 . Scanalyzers . | . . . Garrison Access . | . . . Terminal Hacks 5 | . 5 . Prototype ID Bank 2 | . 2 . Level Access Points 1 | . 1 . Branch Access Points 1 | . 1 . Locate Traps 1 | . 1 . Fabricator Hacks . | . . . Repair Station Hacks 2 | . 2 . Scan Component 1 | . 1 . Repair 1 | . 1 . Recycling Unit Hacks 1 | . 1 . Report Inventory 1 | . 1 . Scanalyzer . | . . . Garrison Access Hacks . | . . . Unauthorized Hacks 4 | . 4 . Terminals 3 | . 3 . Botnet 3 | . 3 . Fabricators . | . . . Repair Stations . | . . . Recycling Units 1 | . 1 . Tunnel 1 | . 1 . Scanalyzers . | . . . Garrison Access . | . . . Data Cores Recovered . | . . . Used . | . . . Hacking Detections 6 | . 6 . Full Trace Events . | . . . Feedback Events . | . . . Feedback Blocked . | . . . Robot Schematics Acquired . | . . . Robots Built . | . . . Authchips . | . . . Time . | . . . Total Robot Build Rating . | . . . Part Schematics Acquired . | . . . Parts Built . | . . . Authchips . | . . . Time . | . . . Total Part Build Rating . | . . . Parts Repaired 1 | . 1 . Time 26 | . 26 . Parts Recycled . | . . . Recycled Matter . | . . . Retrieved Matter . | . . . Retrieved Components . | . . . Parts Scanalyzed . | . . . Part Schematics Acquired . | . . . Parts Damaged . | . . . Bothacking | -11 -10 -10 ------------ Run | Yrd Mat Sub Used RIF Installer . | . . . Robots Hacked . | . . . Non-combat . | . . . Combat . | . . . Robot Hacks Applied . | . . . Relay Couplers Released . | . . . Fabnet Peak Effective % . | . . . Robots Rewired . | . . . Allies Hacked . | . . . Hacks Repelled . | . . . Allies | -11 -10 -10 -------- Run | Yrd Mat Sub Total Allies . | . . . Largest Group . | . . . Highest-Rated Group . | . . . Highest-Rated Ally . | . . . Total Orders . | . . . Ally Attacks . | . . . Total Damage . | . . . Kills . | . . . Allies Corrupted . | . . . Allies Melted . | . . . Intel | -11 -10 -10 ------- Run | Yrd Mat Sub Active Infowar (turns) 65 | . 65 . Seismic 65 | . 65 . Robot Analysis Total . | . . . Derelict Logs Recovered 1 | . . 1 Drone Launches . | . . . Drone Recoveries . | . . . Exploration | -11 -10 -10 ------------- Run | Yrd Mat Sub Turns Passed 1898 | 40 1049 809 Spaces Moved 1046 | 31 566 449 Core 6 | 6 . . Treads 133 | . 118 15 Legs . | . . . Wheels 907 | 25 448 434 Hover . | . . . Flight . | . . . Fastest Speed 50 | 50 100 130 Average Speed 142 | 90 142 147 Slowest Speed 320 | 100 160 320 Overloaded Moves . | . . . Propulsion Burnouts . | . . . Robots Hopped . | . . . Potential Cave-ins . | . . . Cave-ins Triggered . | . . . Exploration Rate (%) 38 | 3 82 31 Regions Visited 2 Branch Regions 1 Pre-discovered Areas 3 | . 1 2 Known Exits Taken 1 | . 1 . Unknown Exits Taken 1 | 1 . . Scrap Searched . | . . . Spaces Dug 2 | . . 2 Terrain Destroyed 4 | . 2 2 Melee 2 | . . 2 Projectile 2 | . 2 . AOE . | . . . Terrain Rammed . | . . . Walls Destroyed . | . . . Machines Disabled . | . . . Actions | -11 -10 -10 --------- Run | Yrd Mat Sub Total 1248 | 39 694 515 Wait 42 | . 41 1 Move 1044 | 30 565 449 Hop . | . . . Pick Up 22 | 2 13 7 Fast Attach 9 | 6 3 . Attach 11 | . 3 8 Detach . | . . . Swap 9 | 1 6 2 Drop 7 | . 4 3 Fire 95 | . 57 38 Melee 7 | . . 7 Ram 2 | . 2 . Kick . | . . . Crush . | . . . Escape Stasis . | . . . Rewire . | . . . Trap . | . . . Miscellaneous . | . . . Route ------- -11/Scrapyard -10/Materials (discovered 5 exits: *Mat x3 / *Min / *Sub) -10/Subcaves History --------- Turn | Location | Event 20 | -11/Scrapyard | Discovered new exit (range 15) 41 | -11/Scrapyard | Entered Materials 226 | -10/Materials | Discovered new exit (range 5) 240 | -10/Materials | Identified exit to Materials 317 | -10/Materials | Build established: Mutant 351 | -10/Materials | Repaired Lgt. Ion Engine 596 | -10/Materials | Identified exit to Mines 833 | -10/Materials | Core integrity fell below 50% 977 | -10/Materials | Discovered new exit (range 9) 1088 | -10/Materials | Identified exit to Subcaves 1090 | -10/Materials | Entered Subcaves 1091 | -10/Subcaves | Approached by a straggling Scientist 1198 | -10/Subcaves | Core integrity fell below 20% 1508 | -10/Subcaves | Learned location of Zion (-7) 1508 | -10/Subcaves | Met a Zionite searching for "candidates" 1511 | -10/Subcaves | A swath of the cavern ceiling suddenly collapsed 1610 | -10/Subcaves | Shifting Twisted Machinery released Sub. Machine Gun 1610 | -10/Subcaves | Shifting Twisted Machinery released Scrap Shield 1899 | -10/Subcaves | Destroyed by 89-YLT(R) with Subdweller Laser Last Messages --------------- 01614_ Sub. Monowheel shoots sparks and powers down. 01615_ Dropped Broken Sub. Monowheel. 01624_ Discarded Signal Interpreter. 01625_ Acquired Scrap Shield. 01627_ Acquired Sub. Machine Gun. 9G-QHU(c): "I think it's somewhere northeast of here" 01652_ Sub. Power Source shoots sparks and powers down. 9G-QHU(c): "I think it's somewhere north of here" 01705_ Acquired derelict log, extracted data. World map updated: -10/Materials. 9G-QHU(c): "I think it's somewhere north of here" 9G-QHU(c): "I think it's somewhere northeast of here" 9G-QHU(c): "I think it's somewhere east of here" 01894_ 89-YLT(R) knocked back. Map ----- +----------------------------------------------------+ | ?????????????????????????????????????????????????? | | ?????????????????????????????????????????????????? | | ?????????????????????????????????????????????????? | | ?????????????????????????????????????????????????? | | ?????????????????????????????????????????????????? | | ?????????????????????????????????????????????????? | | ?????????????????????????????????????????????????? | | ?????????????????????????????????????????????????? | | ?????????????????????????????????????????????????? | | ?????????????????????????????????????????????????? | | ??????????????????????????? ?????????????????????? | | ?????????????????????????? ????????????????????? | | ?????????????????????????? ????????????????????? | | ?????????????????????????? ????????????????????? | | ?????????????????????????? ????????????????????? | | ?????????????????????????? ?????????????????????? | | ?????????????????????????? ?????????????????????? | | ?????????????????????????? ?????????????????????? | | ????????????????????????## ?????????????????????? | | ????????????????????????# #?????????????????????? | | ????????????????????????# ##????????????????????? | | ????????????????????????# ###??????????????????? | | ?????????????????????#### R #??????????????????? | | ?????????????????????# R???????????????????? | | ?????????????????????# ?????????????????????? | | ??????????????????????# @#??????????????????????? | | ??????????????????????## #??????????????????????? | | ???????????????????????# ##?????????????????????? | | ???????????????????????## ##????????????????????? | | ????????????????????#####c ###??????????????????? | | ????????????????????# ##?????????????????? | | ????????????????????# #?????????????????? | | ????????????????????# #?????????????????? | | ????????????????????# ##?????????????????? | | ???????????????????## ###??????????????????? | | ???????????????????# ##????????????????????? | | ???????????????????## ###?????????????????????? | | ????????????????????# #???????????????????????? | | ????????????????????# ##???????????????????????? | | ???????????????####### #????????????????????????? | | ???????????????# & ##???????????????????????? | | ???????????#####""" #???????????????????????? | | ???????????# " #???????????????????????? | | ??????????### " " #???????????????????????? | | #?????????# # ## & ##??????????????????????? | | """??????## ###### #??????????????????????? | | ""?????#|! #### ##?????????????????????? | | ""###### ! #?# #?????????????????????? | | ?#" *"" % ### ##????????????????????? | | ?#"" [& """[! #### #???########?????????? | +----------------------------------------------------+ Best States ------------- Heat Dissipation 25 Energy Generation 15 Energy Capacity 200 Matter Stores 247 Matter Capacity 300 Sight Range 16 Terrain Scan Density 10 Armor Coverage 150 Evasion (%) 40 Recoil Reduction 1 Item Schematics ----------------- None Robot Schematics ------------------ None Fabricated ------------ Nothing Repaired ---------- Lgt. Ion Engine | 45% | -10/Materials Alien Tech Used ----------------- None Achievements -------------- None Challenges ------------ None Game ------ Seed DefenseRecoilDrivehammer Manual? 0 Play Time 00:15:04 Cumulative 68.3 hours Start 2025.06.29 @ 11:34:01 End 2025.06.29 @ 11:47:25 Sessions 1 Manual Loads 0 Difficulty Rogue Special Mode None Game No. 83 Rogue 83 Adventurer 0 Explorer 0 Win Type - Total 1 Types 0/0/1/0/0/0/0/0/0/0 Lore% 34 Gallery% 48 Achievement% 42 Wizard Run 0 Options --------- Layout 1 ASCII 0 Keyboard 0 Movement Mouse Keybinds 0 Fullscreen 1 Font 24/Smallcaps Map View 50x35 Zoom Use 0% Tactical HUD 1 Map Filters NONE Filters NONE Steam 1 RUN: e79a25bb-9a6d-4a2d-9d17-f89154656199